bitfinex/quotes_BTCUSD_20250529
["timestamp","ask_amount","ask_price","bid_price","bid_amount"]
[1748554625796,0.19766566,106240.0,106230.0,1.57785744]
[1748554626027,0.19766566,106240.0,106230.0,1.88124423]
[1748554626897,0.01882449,106240.0,106230.0,3.65009011]
[1748554627119,0.20707471,106250.0,106240.0,0.56217804]
[1748554627345,0.20707471,106250.0,106240.0,0.66046223]
[1748554627346,0.21648603,106250.0,106240.0,0.66046223]
[1748554627573,0.21648603,106250.0,106240.0,1.51072611]
[1748554627820,0.00941105,106250.0,106240.0,2.11472226]
[1748554628072,0.22703888,106260.0,106250.0,0.69717637]
[1748554628294,0.22703888,106260.0,106250.0,1.16646012]
[1748554628532,0.22703888,106260.0,106250.0,1.60100355]
[1748554628755,0.22703888,106260.0,106250.0,2.00100355]
[1748554629209,0.21762836,106260.0,106250.0,1.84846248]
[1748554629436,0.21762836,106260.0,106250.0,1.55764354]
[1748554629679,0.21762836,106260.0,106250.0,1.84846248]
[1748554630140,0.21762836,106260.0,106250.0,1.84926204]
[1748554630778,0.20821757,106260.0,106250.0,1.65261508]
[1748554631027,0.20821757,106260.0,106250.0,1.85026213]
[1748554631269,0.20821757,106260.0,106250.0,1.85026156]
[1748554631510,0.23841757,106260.0,106250.0,1.03694761]
[1748554631802,0.23841757,106260.0,106250.0,0.3481692]
[1748554632031,0.66334907,106260.0,106250.0,0.00501065]
[1748554632708,0.66334907,106260.0,106250.0,0.002]
[1748554632709,0.75440302,106260.0,106250.0,0.002]
[1748554632938,1.17933452,106260.0,106250.0,0.002]
[1748554633207,0.75440302,106260.0,106250.0,0.002]
[1748554635990,1.09440302,106260.0,106250.0,0.002]
[1748554636883,1.51933452,106260.0,106250.0,0.002]
[1748554637345,1.09440302,106260.0,106250.0,0.002]
[1748554640149,0.75440302,106260.0,106250.0,0.002]
[1748554644643,1.17933452,106260.0,106250.0,0.002]
[1748554645084,0.75440302,106260.0,106250.0,0.002]
[1748554647287,1.09440302,106260.0,106250.0,0.002]
[1748554650977,1.03900302,106260.0,106250.0,0.002]
[1748554652349,0.75440302,106260.0,106250.0,0.002]
[1748554652620,0.52301757,106260.0,106250.0,0.002]
[1748554653267,0.94794907,106260.0,106250.0,0.01129121]
[1748554653481,0.94794907,106260.0,106250.0,0.002]
[1748554653700,0.52301757,106260.0,106250.0,0.002]
[1748554653934,0.60945757,106260.0,106250.0,0.002]
[1748554657250,0.32485757,106260.0,106250.0,0.002]
[1748554657465,0.60945757,106260.0,106250.0,0.002]
[1748554657682,0.59435757,106260.0,106250.0,0.002]
[1748554661678,0.59435757,106260.0,106250.0,0.00501153]
[1748554662614,0.49277757,106260.0,106250.0,0.00501153]
[1748554662864,0.49277757,106260.0,106250.0,0.02011153]
[1748554667057,0.20821757,106260.0,106250.0,0.02011153]
[1748554667489,0.20821757,106260.0,106250.0,0.03541153]
[1748554671005,0.20821757,106260.0,106250.0,0.03541127]
[1748554675502,0.20821757,106260.0,106250.0,0.03541129]
[1748554676855,0.20821757,106260.0,106250.0,0.03541132]
[1748554677487,0.20821757,106260.0,106250.0,0.02011132]
[1748554679091,0.20821757,106260.0,106250.0,0.02011135]
[1748554679510,0.20821757,106260.0,106250.0,0.00501135]
[1748554679511,0.22371757,106260.0,106250.0,0.00501135]
[1748554679720,0.22371757,106260.0,106250.0,0.002]
[1748554679928,0.24011757,106260.0,106250.0,0.00501148]
[1748554682665,0.24011757,106260.0,106250.0,0.002]
[1748554682870,0.24011757,106260.0,106250.0,0.00501145]
[1748554683306,0.22371757,106260.0,106250.0,0.00501145]
[1748554683938,0.24011757,106260.0,106250.0,0.00501145]
[1748554684798,0.33117152,106260.0,106250.0,0.00501145]
[1748554685735,0.33117152,106260.0,106250.0,0.002]
[1748554692860,0.34040776,106260.0,106250.0,0.002]
[1748554697725,0.42684776,106260.0,106250.0,0.002]
[1748554709452,0.71140776,106260.0,106250.0,0.002]
[1748554710716,0.70217152,106260.0,106250.0,0.002]
[1748554713849,0.31477152,106260.0,106250.0,0.002]
[1748554714119,0.68577152,106260.0,106250.0,0.002]
[1748554717010,0.29927152,106260.0,106250.0,0.002]
[1748554717195,0.67027152,106260.0,106250.0,0.03731169]
[1748554717470,0.29465757,106260.0,106250.0,0.03731169]
[1748554717692,0.20821757,106260.0,106250.0,0.03731169]
[1748554718349,0.20821757,106260.0,106250.0,0.03731142]
[1748554719219,0.29465757,106260.0,106250.0,0.03731142]
[1748554722088,0.20821757,106260.0,106250.0,0.03731142]
[1748554722320,0.29465757,106260.0,106250.0,0.03731142]
[1748554722542,0.29465757,106260.0,106250.0,0.03731137]
[1748554722979,0.20821757,106260.0,106250.0,0.03731137]
[1748554723205,0.29465757,106260.0,106250.0,0.03731137]
[1748554728324,0.20821757,106260.0,106250.0,0.03731137]
[1748554736652,0.54821757,106260.0,106250.0,0.03731137]
[1748554740221,0.54821757,106260.0,106250.0,0.0343]
[1748554740426,0.20821757,106260.0,106250.0,0.03731136]
[1748554741328,0.20821757,106260.0,106250.0,0.04047762]
[1748554743105,0.20821757,106260.0,106250.0,0.04047775]
[1748554743750,0.20821757,106260.0,106250.0,0.1315317]
[1748554743961,0.20821757,106260.0,106250.0,0.135752]
[1748554745528,0.20821757,106260.0,106250.0,0.535752]
[1748554746371,0.20821757,106260.0,106250.0,0.53575224]
[1748554747496,0.20821757,106260.0,106250.0,0.53575207]
[1748554748180,0.20069039,106260.0,106250.0,0.73852821]
[1748554748398,0.2101087,106260.0,106250.0,0.69418439]
[1748554748619,0.0237742,106260.0,106250.0,0.70359553]
[1748554748831,0.0237742,106260.0,106250.0,1.18577523]
[1748554749037,0.01624702,106260.0,106250.0,1.18577523]
[1748554749248,0.20515501,106260.0,106250.0,1.21401441]
[1748554749461,0.19762783,106260.0,106250.0,1.21623496]
[1748554749666,0.19762783,106260.0,106250.0,1.21923496]
[1748554749882,0.19010065,106260.0,106250.0,1.21923496]
[1748554750078,0.19951117,106260.0,106250.0,1.21923496]
[1748554750218,0.19198399,106260.0,106250.0,1.21923496]
[1748554750423,0.19198399,106260.0,106250.0,1.22880416]
[1748554750633,0.19198399,106260.0,106250.0,2.17986816]
[1748554750634,0.18445681,106260.0,106250.0,2.17986816]
[1748554751054,0.18445681,106260.0,106250.0,2.10970816]
[1748554751055,0.17692963,106260.0,106250.0,2.10970816]
[1748554751258,0.16940343,106260.0,106250.0,1.96217661]
[1748554751639,0.16187723,106260.0,106250.0,1.96217661]
[1748554751924,0.16187723,106260.0,106250.0,1.96617622]
[1748554752148,0.15435103,106260.0,106250.0,1.96617622]
[1748554752591,0.14682483,106260.0,106250.0,1.65432322]
[1748554752796,0.14682483,106260.0,106250.0,1.4973118]
[1748554753009,0.13929863,106260.0,106250.0,1.4973118]
[1748554753216,0.13929863,106260.0,106250.0,1.3505478]
[1748554753834,0.13929863,106260.0,106250.0,1.5563168]
[1748554754875,0.13929863,106260.0,106250.0,1.4758848]
[1748554756322,0.13929863,106260.0,106250.0,1.47588477]
[1748554756533,0.13929863,106260.0,106250.0,1.45972977]
[1748554757283,0.13929863,106260.0,106250.0,1.38680377]
[1748554757798,0.13929863,106260.0,106250.0,1.38379327]
[1748554758017,0.13929863,106260.0,106250.0,1.38680377]
[1748554760215,0.13929863,106260.0,106250.0,1.38679865]
[1748554760901,0.13929863,106260.0,106250.0,1.39199842]
[1748554761337,0.02823156,106260.0,106250.0,1.40140956]
[1748554765023,0.21644913,106260.0,106250.0,1.30559842]
[1748554765247,0.22586,106260.0,106250.0,1.52343434]
[1748554766562,0.03764243,106260.0,106250.0,1.53284548]
[1748554766787,0.22586,106260.0,106250.0,1.53284548]
[1748554767473,0.02823156,106260.0,106250.0,1.53284548]
[1748554767908,0.02823156,106260.0,106250.0,1.78162548]
[1748554769282,0.00565341,106260.0,106250.0,1.78162548]
[1748554769806,0.22210262,106260.0,106250.0,1.65407934]
[1748554771203,0.1882741,106270.0,106260.0,0.24346929]
[1748554771428,0.1882741,106270.0,106260.0,0.35116218]
[1748554771638,0.1882741,106270.0,106260.0,0.34175139]
[1748554771849,0.1882741,106270.0,106260.0,0.74175139]
[1748554772069,0.1882741,106270.0,106260.0,0.75116209]
[1748554772970,0.1882741,106270.0,106260.0,0.7655727]
[1748554774152,0.01881741,106280.0,106270.0,0.57811922]
[1748554774389,0.18828372,106290.0,106270.0,0.57811922]
[1748554774390,0.19769185,106290.0,106280.0,0.60204952]
[1748554774622,0.19769185,106290.0,106280.0,0.68986795]
[1748554774623,0.20759113,106290.0,106280.0,0.68986795]
[1748554774855,0.20759113,106290.0,106280.0,0.9836767]
[1748554775314,0.20759113,106290.0,106280.0,1.3836767]
[1748554775541,0.20759113,106290.0,106280.0,1.36837705]
[1748554775773,0.20759113,106290.0,106280.0,2.52017589]
[1748554775774,0.00049142,106290.0,106280.0,2.52017589]
[1748554776052,0.18819834,106310.0,106290.0,0.57792129]
[1748554776053,0.18814675,106300.0,106290.0,0.57792129]
[1748554776282,0.21636795,106300.0,106290.0,0.70131117]
[1748554776514,0.20696106,106300.0,106290.0,0.78767117]
[1748554776747,0.20696106,106300.0,106290.0,1.18767117]
[1748554777457,0.02822085,106300.0,106290.0,1.20101851]
[1748554778154,0.01881369,106300.0,106290.0,1.23030777]
[1748554778388,0.02822085,106300.0,106290.0,1.23030777]
[1748554779529,0.02822085,106300.0,106290.0,1.22924542]
[1748554780207,0.01881369,106300.0,106290.0,1.22924542]
[1748554780418,0.0188136,106300.0,106290.0,1.22924542]
[1748554780632,0.00940671,106300.0,106290.0,1.24825859]
[1748554781063,0.0188136,106300.0,106290.0,2.25183294]
[1748554781967,0.02822067,106300.0,106290.0,2.25183294]
[1748554782402,0.0188136,106300.0,106290.0,2.25183294]
[1748554782666,0.0188136,106300.0,106290.0,0.12229424]
[1748554782667,0.23776097,106300.0,106290.0,0.12229424]
[1748554782882,0.23776097,106300.0,106290.0,0.02702256]
[1748554783340,0.52212097,106300.0,106290.0,0.02401317]
[1748554783784,0.52212097,106300.0,106290.0,0.02101317]
[1748554784017,0.52212097,106300.0,106290.0,0.01901317]
[1748554784238,0.52212097,106300.0,106290.0,0.02001317]
[1748554784461,0.52212097,106300.0,106290.0,0.001]
[1748554784669,0.52212097,106300.0,106290.0,0.02007524]
[1748554784878,0.52212097,106300.0,106290.0,0.002]
[1748554786641,0.61317492,106300.0,106290.0,0.002]
[1748554787964,0.95317492,106300.0,106290.0,0.002]
[1748554788838,1.03953492,106300.0,106290.0,0.002]
[1748554789271,1.03953492,106300.0,106290.0,0.02094416]
[1748554789481,1.03953492,106300.0,106290.0,0.002]
[1748554790797,0.69953492,106300.0,106290.0,0.002]
[1748554794172,0.69953492,106300.0,106290.0,0.02112944]
[1748554794364,0.69953492,106300.0,106290.0,0.002]
[1748554795060,0.23776097,106300.0,106290.0,0.002]
[1748554795289,0.50706097,106300.0,106290.0,0.002]
[1748554795767,0.52296097,106300.0,106290.0,0.002]
[1748554796673,0.52312097,106300.0,106290.0,0.002]
[1748554798248,0.52312097,106300.0,106290.0,0.02076495]
[1748554799780,0.50722097,106300.0,106290.0,0.02076495]
[1748554800229,0.22266097,106300.0,106290.0,0.02076495]
[1748554800472,0.20696097,106300.0,106290.0,0.49725975]
[1748554800718,0.20696097,106300.0,106290.0,0.50342236]
[1748554800954,0.20696097,106300.0,106290.0,1.10099494]
[1748554801173,0.20696097,106300.0,106290.0,1.10099503]
[1748554801397,0.22577475,106300.0,106290.0,1.19635102]
[1748554801631,0.22577475,106300.0,106290.0,1.19635111]
[1748554802853,0.22577475,106300.0,106290.0,1.12087585]
[1748554803073,0.22577475,106300.0,106290.0,1.12087519]
[1748554804219,0.21636804,106300.0,106290.0,1.11146741]
[1748554804891,0.20696106,106300.0,106290.0,1.10205955]
[1748554805108,0.20696106,106300.0,106290.0,1.11146759]
[1748554805678,0.20696106,106300.0,106290.0,0.90448697]
[1748554805944,0.18814675,106300.0,106290.0,0.90448697]
[1748554806154,0.18814675,106300.0,106290.0,0.90763753]
[1748554807280,0.18814675,106300.0,106290.0,0.90763758]
[1748554808371,0.18814675,106300.0,106290.0,0.50763758]
[1748554808801,0.18814675,106300.0,106290.0,0.90763758]
[1748554812187,0.18814675,106300.0,106290.0,1.19215758]
[1748554813006,0.18814675,106300.0,106290.0,0.50763758]
[1748554813215,0.18814675,106300.0,106290.0,0.79215758]
[1748554813837,0.18814675,106300.0,106290.0,0.49243758]
[1748554814038,0.20384675,106300.0,106290.0,0.36692505]
[1748554815087,2.78384675,106300.0,106290.0,0.36692505]
[1748554815709,2.78384675,106300.0,106290.0,0.36377453]
[1748554815945,2.78384675,106300.0,106290.0,0.36377483]
[1748554816154,2.76814675,106300.0,106290.0,0.37987483]
[1748554816585,2.76814675,106300.0,106290.0,0.39527483]
[1748554816784,2.76814675,106300.0,106290.0,0.37987483]
[1748554817218,2.76814675,106300.0,106290.0,0.38302518]
[1748554818038,2.76814675,106300.0,106290.0,0.38302551]
[1748554820444,2.76814675,106300.0,106290.0,0.38302676]
[1748554821290,2.76814675,106300.0,106290.0,0.49802978]
[1748554821509,2.76814675,106300.0,106290.0,0.70661196]
[1748554821730,2.76814675,106300.0,106290.0,0.71602]
[1748554822386,2.76814675,106300.0,106290.0,0.71286798]
[1748554822606,2.76814675,106300.0,106290.0,0.70345994]
[1748554823513,2.76814675,106300.0,106290.0,0.50588727]
[1748554828924,2.76814675,106300.0,106290.0,0.67785172]
[1748554829148,2.76814675,106300.0,106290.0,0.70275985]
[1748554829628,2.76814675,106300.0,106290.0,0.69854192]
[1748554829857,2.76814675,106300.0,106290.0,1.09854192]
[1748554831141,2.76814675,106300.0,106290.0,1.08913379]
[1748554832519,2.76814675,106300.0,106290.0,1.09854201]
[1748554835949,2.76814675,106300.0,106290.0,1.10795014]
[1748554836840,2.76814675,106300.0,106290.0,1.09854201]
[1748554837614,2.76814675,106300.0,106290.0,0.90096934]
[1748554839642,2.76814675,106300.0,106290.0,1.08913379]
[1748554842993,2.76814675,106300.0,106290.0,0.90096934]
[1748554843195,2.76814675,106300.0,106290.0,0.88546934]
[1748554844049,2.76814675,106300.0,106290.0,0.90126934]
[1748554844494,2.76814675,106300.0,106290.0,0.96614339]
[1748554847056,2.76814675,106300.0,106290.0,0.96318493]
[1748554847263,2.76814675,106300.0,106290.0,0.96619451]
[1748554849983,2.76814675,106300.0,106290.0,1.16376718]
[1748554850192,2.55742894,106300.0,106290.0,1.23508277]
[1748554850439,2.55931172,106300.0,106290.0,1.23508277]
[1748554850683,2.56871843,106300.0,106290.0,1.63012872]
[1748554850895,2.56119459,106300.0,106290.0,1.63012872]
[1748554851106,2.54426404,106300.0,106290.0,1.63012872]
[1748554851324,2.55367093,106300.0,106290.0,1.59537301]
[1748554851537,2.54614709,106300.0,106290.0,1.63012209]
[1748554853503,2.54614709,106300.0,106290.0,1.66328479]
[1748554854804,2.55555416,106300.0,106290.0,1.66328479]
[1748554855463,2.55555416,106300.0,106290.0,1.85743179]
[1748554855735,2.56496132,106300.0,106290.0,1.82484179]
[1748554855956,2.56496132,106300.0,106290.0,1.8248418]
[1748554857230,2.7437018,106300.0,106290.0,1.50137734]
[1748554857453,2.7437018,106300.0,106290.0,1.52019298]
[1748554857671,2.75310913,106300.0,106290.0,1.52019298]
[1748554857889,2.75310913,106300.0,106290.0,1.80451298]
[1748554858107,2.55555505,106300.0,106290.0,1.81392058]
[1748554858346,2.7437018,106300.0,106290.0,1.81392058]
[1748554859013,2.54614781,106300.0,106290.0,1.81392058]
[1748554859744,2.7437018,106300.0,106290.0,1.81392058]
[1748554860193,2.7437018,106300.0,106290.0,1.8139206]
[1748554860637,2.7437018,106300.0,106290.0,1.520193]
[1748554860875,2.7437018,106300.0,106290.0,1.804513]
[1748554860876,2.75310913,106300.0,106290.0,1.804513]
[1748554861101,2.74836613,106300.0,106290.0,1.804513]
[1748554861774,2.74836613,106300.0,106290.0,1.81392069]
[1748554862662,2.55081205,106300.0,106290.0,1.81392007]
[1748554862897,2.55081205,106300.0,106290.0,1.74600826]
[1748554863139,2.55081205,106300.0,106290.0,1.8139142]
[1748554863366,2.53199738,106300.0,106290.0,1.8139142]
[1748554863655,2.54140445,106300.0,106290.0,1.8139142]
[1748554863891,2.55081161,106300.0,106290.0,1.8139142]
[1748554864683,2.56021885,106300.0,106290.0,1.9283792]
[1748554865156,2.56021815,106300.0,106290.0,1.9283792]
[1748554865413,2.537648,106300.0,106290.0,1.9283792]
[1748554865857,2.532876,106300.0,106290.0,1.9283792]
[1748554866090,2.72102275,106300.0,106290.0,1.50137113]
[1748554866312,2.532876,106300.0,106290.0,1.8138742]
[1748554866745,2.50465497,106300.0,106290.0,2.0910552]
[1748554866959,2.49102168,106300.0,106290.0,2.0910552]
[1748554867436,2.49102168,106300.0,106290.0,2.09105663]
[1748554867657,2.47220843,106300.0,106290.0,2.09105663]
[1748554867872,2.48038849,106300.0,106290.0,2.09105663]
[1748554868342,2.48500347,106300.0,106290.0,2.09105663]
[1748554869312,2.49441063,106300.0,106290.0,2.09105663]
[1748554869546,2.48500347,106300.0,106290.0,2.09105663]
[1748554870001,2.66374457,106300.0,106290.0,1.39232427]
[1748554870238,2.66983759,106300.0,106290.0,1.72039572]
[1748554870462,2.66983759,106300.0,106290.0,1.73493657]
[1748554871222,2.66983759,106300.0,106290.0,1.82129657]
[1748554871679,2.66983759,106300.0,106290.0,1.63313634]
[1748554872375,2.66983759,106300.0,106290.0,1.60491134]
[1748554872603,2.66983759,106300.0,106290.0,1.80248392]
[1748554872855,2.65433759,106300.0,106290.0,1.81878392]
[1748554873077,2.65433759,106300.0,106290.0,2.02083796]
[1748554873313,2.65433759,106300.0,106290.0,2.00484552]
[1748554873314,2.43325302,106300.0,106290.0,2.00484552]
[1748554873553,0.60462564,106300.0,106290.0,6.52244857]
[1748554873807,0.22688332,106340.0,106330.0,0.55203902]
[1748554874060,0.22688332,106340.0,106330.0,1.40775656]
[1748554874288,0.22688332,106340.0,106330.0,1.55423424]
[1748554874515,0.21747997,106340.0,106330.0,1.38495089]
[1748554874739,0.21747997,106340.0,106330.0,1.39434476]
[1748554875209,0.21747997,106340.0,106330.0,1.41064476]
[1748554875462,0.22047997,106340.0,106330.0,1.41064476]
[1748554875935,0.22047997,106340.0,106330.0,1.41064405]
[1748554876174,0.22047997,106340.0,106330.0,1.37646705]
[1748554876413,0.25167997,106340.0,106330.0,0.8718102]
[1748554876645,0.23812187,106320.0,106310.0,0.00314839]
[1748554876873,0.23812187,106320.0,106290.0,0.41028904]
[1748554876874,0.22875391,106300.0,106290.0,0.30414839]
[1748554877118,0.51559391,106300.0,106290.0,0.301]
[1748554877610,0.60664786,106300.0,106290.0,0.301]
[1748554878524,0.60669691,106300.0,106290.0,0.301]
[1748554878746,0.61169691,106300.0,106290.0,0.301]
[1748554878979,0.52240296,106300.0,106290.0,0.301]
[1748554879199,0.52240296,106300.0,106290.0,0.31859231]
[1748554879416,0.52340296,106300.0,106290.0,0.301]
[1748554880306,0.52340296,106300.0,106290.0,0.31859888]
[1748554880565,0.52340296,106300.0,106290.0,0.301]
[1748554880796,0.52340296,106300.0,106290.0,0.31859955]
[1748554881016,0.52340296,106300.0,106290.0,0.301]
[1748554881469,0.52340296,106300.0,106290.0,0.31859954]
[1748554881698,0.52340296,106300.0,106290.0,0.31859968]
[1748554881928,0.52340296,106300.0,106290.0,0.301]
[1748554883063,0.52372296,106300.0,106290.0,0.301]
[1748554884183,0.52372296,106300.0,106290.0,0.31759768]
[1748554884419,0.52372296,106300.0,106290.0,0.3]
[1748554885565,0.52360296,106300.0,106290.0,0.3]
[1748554885792,0.23480296,106300.0,106290.0,0.3]
[1748554886019,0.21970296,106300.0,106290.0,0.3175925]
[1748554886241,0.21970296,106300.0,106290.0,0.39105395]
[1748554886457,0.21970296,106300.0,106290.0,0.40864378]
[1748554886683,0.21970296,106300.0,106290.0,0.40864295]
[1748554887115,0.21970296,106300.0,106290.0,0.39105395]
[1748554887792,0.21970296,106300.0,106290.0,0.40858903]
[1748554888015,0.21970296,106300.0,106290.0,0.408586]
[1748554888482,0.21970296,106300.0,106290.0,0.40858609]
[1748554888709,0.21970296,106300.0,106290.0,0.41159593]
[1748554888933,0.20360296,106300.0,106290.0,0.60917011]
[1748554889177,0.20360296,106300.0,106290.0,0.59976189]
[1748554889405,0.20360296,106300.0,106290.0,0.60916999]
[1748554889624,0.20360296,106300.0,106290.0,0.41159724]
[1748554889848,0.20360296,106300.0,106290.0,0.41159725]
[1748554890072,0.20360296,106300.0,106290.0,0.41159905]
[1748554890292,0.1941958,106300.0,106290.0,0.41159905]
[1748554890965,0.1941958,106300.0,106290.0,0.41159895]
[1748554891189,0.1941958,106300.0,106290.0,0.78703896]
[1748554891638,0.1941958,106300.0,106290.0,0.78703892]
[1748554891858,0.1941958,106300.0,106290.0,0.78703825]
[1748554892107,0.1941958,106300.0,106290.0,0.76950379]
[1748554892330,0.1941958,106300.0,106290.0,0.78704163]
[1748554892540,0.1941958,106300.0,106290.0,0.78704162]
[1748554893033,0.1941958,106300.0,106290.0,0.76950379]
[1748554893257,0.1941958,106300.0,106290.0,1.10950379]
[1748554893485,0.0248631,106300.0,106290.0,1.34977406]
[1748554893712,0.03427034,106300.0,106290.0,1.37438175]
[1748554893940,0.22241709,106300.0,106290.0,1.78378935]
[1748554894167,0.22141709,106300.0,106290.0,1.77438175]
[1748554894390,0.21641709,106300.0,106290.0,1.79506991]
[1748554894615,0.21741709,106300.0,106290.0,1.79413006]
[1748554894830,0.21741709,106300.0,106290.0,1.8116723]
[1748554895055,0.02927034,106300.0,106290.0,1.81167137]
[1748554895279,0.02927034,106300.0,106290.0,1.81167127]
[1748554895712,0.22041709,106300.0,106290.0,1.79507133]
[1748554895946,0.22041709,106300.0,106290.0,1.82330243]
[1748554896615,0.22041709,106300.0,106290.0,1.81389474]
[1748554896835,0.22041709,106300.0,106290.0,1.81389656]
[1748554897052,0.22041709,106300.0,106290.0,1.83049656]
[1748554897494,0.22041709,106300.0,106290.0,1.81389626]
[1748554897912,0.22041709,106300.0,106290.0,1.83049626]
[1748554898128,0.22041709,106300.0,106290.0,1.83990941]
[1748554898332,0.22041709,106300.0,106290.0,1.82330949]
[1748554898770,0.22041709,106300.0,106290.0,1.80575697]
[1748554898993,0.03227034,106300.0,106290.0,1.82330906]
[1748554899216,0.02286256,106300.0,106290.0,1.82330906]
[1748554899467,0.03226972,106300.0,106290.0,1.83991516]
[1748554899940,0.04167696,106300.0,106290.0,1.83991516]
[1748554900594,0.04167696,106300.0,106290.0,1.83991502]
[1748554900839,0.04167696,106300.0,106290.0,1.83991507]
[1748554901058,0.04167696,106300.0,106290.0,1.82235697]
[1748554901282,0.03226972,106300.0,106290.0,1.82331501]
[1748554901505,0.03226972,106300.0,106290.0,1.82331515]
[1748554901738,0.03226972,106300.0,106290.0,1.823315]
[1748554901976,0.04167696,106300.0,106290.0,1.81934158]
[1748554902188,0.04167696,106300.0,106290.0,1.822351]
[1748554902412,0.22982371,106300.0,106290.0,1.822351]
[1748554902638,0.04067696,106300.0,106290.0,1.822351]
[1748554903089,0.22882371,106300.0,106290.0,1.822351]
[1748554903320,0.04067696,106300.0,106290.0,1.83990902]
[1748554903551,0.04067696,106300.0,106290.0,1.822351]
[1748554903802,0.04067696,106300.0,106290.0,1.83990714]
[1748554904022,0.04067696,106300.0,106290.0,1.822351]
[1748554904245,0.04067696,106300.0,106290.0,1.83990707]
[1748554904470,0.22882371,106300.0,106290.0,1.83470354]
[1748554904721,0.04067696,106300.0,106290.0,1.83990714]
[1748554904941,0.03126972,106300.0,106290.0,1.85351883]
[1748554905171,0.03126972,106300.0,106290.0,2.24081507]
[1748554905397,0.03126972,106300.0,106290.0,1.79267802]
[1748554905638,0.004,106300.0,106290.0,2.08103802]
[1748554905903,0.004,106300.0,106290.0,2.09859008]
[1748554906378,0.004,106300.0,106290.0,2.0985899]
[1748554906604,0.001,106300.0,106290.0,2.09438581]
[1748554906850,0.003,106300.0,106290.0,2.09438581]
[1748554907064,0.003,106300.0,106290.0,2.07683375]
[1748554907281,0.03762446,106310.0,106300.0,0.26150853]
[1748554907492,0.23515996,106310.0,106300.0,0.37731133]
[1748554907720,0.03762446,106310.0,106300.0,0.37731136]
[1748554907933,0.22575351,106310.0,106300.0,0.77731136]
[1748554908152,0.23515996,106310.0,106300.0,0.80553636]
[1748554908367,0.01881201,106310.0,106300.0,0.80553333]
[1748554908617,0.0386242,106310.0,106300.0,0.80553333]
[1748554908828,0.0386242,106310.0,106300.0,0.80553203]
[1748554909044,0.0386242,106310.0,106300.0,0.80553223]
[1748554909262,0.0386242,106310.0,106300.0,0.7879937]
[1748554909479,0.0386242,106310.0,106300.0,0.8055321]
[1748554909715,0.0386242,106310.0,106300.0,0.7879937]
[1748554910371,0.0376242,106310.0,106300.0,0.7879937]
[1748554910820,0.0376242,106310.0,106300.0,0.78799359]
[1748554911254,0.23515961,106310.0,106300.0,0.78799359]
[1748554911716,0.04703056,106310.0,106300.0,0.80553212]
[1748554911937,0.04703056,106310.0,106300.0,0.78799359]
[1748554912616,0.04703056,106310.0,106300.0,0.80553207]
[1748554912844,0.04703056,106310.0,106300.0,0.80553211]
[1748554913063,0.23204813,106310.0,106300.0,0.54102591]
[1748554913282,0.23204813,106310.0,106300.0,0.43721126]
[1748554913283,0.23804186,106310.0,106300.0,0.43721126]
[1748554913509,0.23804186,106310.0,106300.0,0.34615731]
[1748554913741,0.23804186,106310.0,106300.0,0.00300913]
[1748554914809,0.23904186,106310.0,106300.0,0.00300913]
[1748554915068,0.19755391,106300.0,106290.0,0.5971]
[1748554915314,0.22995391,106300.0,106290.0,1.03431427]
[1748554916418,0.22995391,106300.0,106290.0,1.05723101]
[1748554916637,0.22995391,106300.0,106290.0,1.07477962]
[1748554916850,0.22995391,106300.0,106290.0,1.05723101]
[1748554917070,0.22995391,106300.0,106290.0,1.07478234]
[1748554917499,0.22995391,106300.0,106290.0,0.9474573]
[1748554917709,0.22995391,106300.0,106290.0,0.94326032]
[1748554917929,0.22995391,106300.0,106290.0,0.96081509]
[1748554918148,0.22995391,106300.0,106290.0,0.94326032]
[1748554918580,0.22995391,106300.0,106290.0,0.96081534]
[1748554918818,0.22995391,106300.0,106290.0,0.64616032]
[1748554919924,0.23195391,106300.0,106290.0,0.64616032]
[1748554920383,0.23295391,106300.0,106290.0,0.64616032]
[1748554921025,0.23295391,106300.0,106290.0,0.66371846]
[1748554921252,0.23295391,106300.0,106290.0,0.64616032]
[1748554921481,0.23295391,106300.0,106290.0,0.66371855]
[1748554921929,0.23295391,106300.0,106290.0,0.66371478]
[1748554922142,0.23295391,106300.0,106290.0,0.66371426]
[1748554922368,0.23295391,106300.0,106290.0,0.68127045]
[1748554922598,0.23295391,106300.0,106290.0,0.68126985]
[1748554922858,0.23295391,106300.0,106290.0,0.66070635]
[1748554923083,0.23295391,106300.0,106290.0,0.68126956]
[1748554923302,0.23295391,106300.0,106290.0,0.66371624]
[1748554923520,0.23295391,106300.0,106290.0,0.68127038]
[1748554923732,0.23295391,106300.0,106290.0,0.66056382]
[1748554924602,0.23295391,106300.0,106290.0,0.67811821]
[1748554924818,0.23295391,106300.0,106290.0,0.66056382]
[1748554926191,0.23295391,106300.0,106290.0,0.67811554]
[1748554926416,0.23295391,106300.0,106290.0,0.67811007]
[1748554926634,0.23295391,106300.0,106290.0,0.68743412]
[1748554926854,0.23295391,106300.0,106290.0,0.66988795]
[1748554927529,0.23295391,106300.0,106290.0,0.68743207]
[1748554927759,0.23295391,106300.0,106290.0,0.66988795]
[1748554929735,0.23295391,106300.0,106290.0,0.68742514]
[1748554929948,0.23295391,106300.0,106290.0,0.66988795]
[1748554930169,0.23295391,106300.0,106290.0,0.68742526]
[1748554930676,0.23295391,106300.0,106290.0,0.68742361]
[1748554930901,0.23295391,106300.0,106290.0,0.68742352]
[1748554931136,0.02181351,106300.0,106290.0,1.01066533]
[1748554931376,0.003,106300.0,106290.0,3.23923658]
[1748554931627,0.003,106300.0,106290.0,3.2506904]
[1748554931931,0.01881015,106320.0,106310.0,0.24734733]
[1748554932120,0.01881015,106320.0,106310.0,0.74006945]
[1748554932358,0.01881015,106320.0,106310.0,0.75759718]
[1748554932581,0.00940415,106330.0,106320.0,0.60618783]
[1748554932813,0.01894653,106330.0,106320.0,0.74120592]
[1748554933039,0.01894653,106330.0,106320.0,0.74120586]
[1748554933280,0.01894653,106330.0,106320.0,0.73805516]
[1748554933281,0.02835094,106330.0,106320.0,0.73805516]
[1748554933500,0.02835094,106330.0,106320.0,1.14120015]
[1748554934178,0.02835094,106330.0,106320.0,1.14118794]
[1748554934393,0.02835094,106330.0,106320.0,1.15955339]
[1748554934612,0.02835094,106330.0,106320.0,1.16155339]
[1748554934846,0.02835094,106330.0,106320.0,1.14272662]
[1748554935273,0.03775544,106330.0,106320.0,1.14472662]
[1748554935516,0.03775544,106330.0,106320.0,1.12723781]
[1748554935788,0.03775544,106330.0,106320.0,1.1405184]
[1748554936006,0.03775544,106330.0,106320.0,1.12303961]
[1748554936229,0.03775544,106330.0,106320.0,1.14051411]
[1748554936459,0.03775544,106330.0,106320.0,1.14051248]
[1748554936910,0.03775544,106330.0,106320.0,1.14050788]
[1748554937364,0.03775544,106330.0,106320.0,1.13114294]
[1748554937365,0.22584911,106330.0,106320.0,1.13114294]
[1748554937600,0.22584911,106330.0,106320.0,1.12307979]
[1748554937823,0.22584911,106330.0,106320.0,1.14995306]
[1748554938082,0.03775544,106330.0,106320.0,1.15935806]